[Event "RUS-ch Men Blitz 2019"]
[Site "Sochi"]
[Date "2019.10.17"]
[Round "14.14"]
[White "Zakaryan, David"]
[Black "Bocharov, Dmitry"]
[Result "0-1"]
[ECO "B06"]
[WhiteElo "2338"]
[BlackElo "2519"]
[Annotator "ChessBase"]
[PlyCount "89"]
[EventDate "2019.10.17"]
[EventType "swiss"]
[EventCountry "RUS"]
[SourceTitle "playchess.com"]
[Source "ChessBase"]
[SourceQuality "1"]
[TimeControl "180+2"]

1. e4 g6 {[%emt 0:00:00]} 2. d4 {[%emt 0:00:01]} Bg7 {[%emt 0:00:01]} 3. Nc3 {[%emt 0:00:01]} d6 {[%emt 0:00:02]} 4. Bg5 {[%emt 0:00:01]} a6 {[%emt 0:00:03]} 5. f4 {[%emt 0:00:02]} b5 {[%emt 0:00:02]} 6. Nf3 {[%emt 0:00:02]} Bb7 {[%emt 0:00:02]} 7. Bd3 {[%emt 0:00:01]} Nd7 {[%emt 0:00:01]} 8. e5 {[%emt 0:00:01]} c5 {[%emt 0:00:07]} 9. Be4 {[%emt 0:00:39]} Qc8 {[%emt 0:00:41]} 10. exd6 {[%emt 0:00:10]} cxd4 {[%emt 0:00:50]} 11. Nd5 {[%emt 0:00:30]} exd6 {[%emt 0:00:03]} 12. Qe2 {[%emt 0:00:01]} Kf8 {[%emt 0:00:11]} 13. Ne7 {[%emt 0:00:22]} Nxe7 {[%emt 0:00:07]} 14. Bxe7+ {[%emt 0:00:24]} Kg8 {[%emt 0:00:01]} 15. Bxd6 {[%emt 0:00:05]} Bxe4 {[%emt 0:00:34]} 16. Qxe4 {[%emt 0:00:01]} d3 {[%emt 0:00:17]} 17. cxd3 {[%emt 0:00:21]} Bxb2 {[%emt 0:00:03]} 18. Rb1 {[%emt 0:00:09]} Nf6 {[%emt 0:00:02]} 19. Qe2 {[%emt 0:00:16]} Bc3+ {[%emt 0:00:02]} 20. Kf2 {[%emt 0:00:05]} Qc6 {[%emt 0:00:08]} 21. Be5 {[%emt 0:00:02]} Ng4+ {[%emt 0:00:05]} 22. Kg3 {[%emt 0:00:01]} Nxe5 {[%emt 0:00:01]} 23. fxe5 {[%emt 0:00:06]} Qd5 {[%emt 0:00:03]} 24. d4 {[%emt 0:00:03]} Kg7 {[%emt 0:00:04]} 25. Rhd1 {[%emt 0:00:02]} Rhc8 {[%emt 0:00:01]} 26. Qe3 {[%emt 0:00:02]} b4 {[%emt 0:00:08]} 27. Qf4 {[%emt 0:00:01]} Rc6 {[%emt 0:00:02]} 28. a3 {[%emt 0:00:05]} a5 {[%emt 0:00:01]} 29. axb4 {[%emt 0:00:01]} axb4 {[%emt 0:00:01]} 30. Rd3 {[%emt 0:00:06]} Ra2 {[%emt 0:00:02]} 31. Rf1 {[%emt 0:00:01]} Re2 {[%emt 0:00:05]} 32. Re3 {[%emt 0:00:12]} Rxe3 {[%emt 0:00:02]} 33. Qxe3 {[%emt 0:00:00]} b3 {[%emt 0:00:02]} 34. Rb1 {[%emt 0:00:01]} b2 {[%emt 0:00:01]} 35. Qf4 {[%emt 0:00:03]} h6 {[%emt 0:00:02]} 36. Qe3 {[%emt 0:00:01]} Rc4 {[%emt 0:00:01]} 37. h3 {[%emt 0:00:02]} Rc6 {[%emt 0:00:04]} 38. Kh2 {[%emt 0:00:00]} g5 {[%emt 0:00:02]} 39. Qd3 {[%emt 0:00:03]} Qc4 {[%emt 0:00:03]} 40. Qe4 {[%emt 0:00:02]} Ra6 {[%emt 0:00:05]} 41. h4 {[%emt 0:00:02]} Qc6 {[%emt 0:00:04]} 42. Qe2 {[%emt 0:00:08]} Qg6 {[%emt 0:00:02]} 43. Qf1 Ra1 {[%emt 0:00:01]} 44. Nd2 {[%emt 0:00:09]} Bxd2 {[%emt 0:00:02]} 45. Rxa1 {[%emt 0:00:01]} 0-1

[Event "RUS-ch Men Blitz 2019"]
[Site "Sochi"]
[Date "2019.10.17"]
[Round "14.15"]
[White "Gurvich, Vitaly"]
[Black "Khegay, Dmitriy"]
[Result "1/2-1/2"]
[ECO "B07"]
[WhiteElo "2278"]
[BlackElo "2509"]
[Annotator "ChessBase"]
[PlyCount "121"]
[EventDate "2019.10.17"]
[EventType "swiss"]
[EventCountry "RUS"]
[SourceTitle "playchess.com"]
[Source "ChessBase"]
[SourceQuality "1"]
[TimeControl "180+2"]

1. e4 {[%emt 0:00:00]} d6 {[%emt 0:00:03]} 2. d4 {[%emt 0:00:01]} Nf6 {[%emt 0:00:01]} 3. Nc3 {[%emt 0:00:01]} c6 {[%emt 0:00:01]} 4. a4 {[%emt 0:00:04]} Nbd7 {[%emt 0:00:02]} 5. g3 {[%emt 0:00:01]} e5 {[%emt 0:00:11]} 6. Nge2 {[%emt 0:00:03]} Be7 {[%emt 0:00:08]} 7. Bg2 {[%emt 0:00:01]} O-O {[%emt 0:00:01]} 8. O-O {[%emt 0:00:01]} b6 {[%emt 0:00:01]} 9. f4 {[%emt 0:00:06]} a6 {[%emt 0:00:10]} 10. h3 {[%emt 0:00:08]} Bb7 {[%emt 0:00:11]} 11. g4 {[%emt 0:00:49]} b5 {[%emt 0:00:01]} 12. axb5 {[%emt 0:00:04]} cxb5 {[%emt 0:00:14]} 13. fxe5 {[%emt 0:00:10]} dxe5 {[%emt 0:00:02]} 14. d5 {[%emt 0:00:00]} Bc5+ {[%emt 0:00:10]} 15. Kh1 {[%emt 0:00:02]} Nxg4 {[%emt 0:00:05]} 16. Qe1 {[%emt 0:00:08]} Ne3 {[%emt 0:00:11]} 17. Bxe3 {[%emt 0:00:02]} Bxe3 {[%emt 0:00:01]} 18. Ng3 {[%emt 0:00:16]} Bf4 {[%emt 0:00:03]} 19. Nce2 {[%emt 0:00:04]} Bg5 {[%emt 0:00:39]} 20. Nf5 {[%emt 0:00:06]} g6 {[%emt 0:00:23]} 21. Nd6 {[%emt 0:00:09]} Nc5 {[%emt 0:00:01]} 22. Nxb7 {[%emt 0:00:06]} Nxb7 {[%emt 0:00:01]} 23. Qg3 {[%emt 0:00:17]} Bf6 {[%emt 0:00:01]} 24. c3 {[%emt 0:00:17]} Bg7 25. b3 {[%emt 0:00:02]} Nd6 {[%emt 0:00:02]} 26. Rac1 {[%emt 0:00:08]} Rc8 {[%emt 0:00:01]} 27. Qd3 {[%emt 0:00:07]} Rc5 {[%emt 0:00:23]} 28. Ra1 {[%emt 0:00:16]} a5 {[%emt 0:00:12]} 29. Rxa5 {[%emt 0:00:13]} Qxa5 {[%emt 0:00:02]} 30. b4 {[%emt 0:00:00]} Qc7 {[%emt 0:00:08]} 31. bxc5 {[%emt 0:00:04]} Qxc5 {[%emt 0:00:08]} 32. Ra1 {[%emt 0:00:06]} h5 {[%emt 0:00:03]} 33. Ra6 {[%emt 0:00:07]} Rc8 {[%emt 0:00:03]} 34. Ra1 {[%emt 0:00:05]} Nc4 35. Rf1 {[%emt 0:00:01]} Ne3 {[%emt 0:00:07]} 36. Rf3 {[%emt 0:00:02]} Nxg2 {[%emt 0:00:02]} 37. Kxg2 Qc4 {[%emt 0:00:02]} 38. Qxc4 {[%emt 0:00:06]} Rxc4 {[%emt 0:00:09]} 39. Rd3 {[%emt 0:00:00]} Kf8 {[%emt 0:00:05]} 40. d6 {[%emt 0:00:03]} Ke8 {[%emt 0:00:01]} 41. Kf3 {[%emt 0:00:01]} Bh6 {[%emt 0:00:03]} 42. Rd5 {[%emt 0:00:01]} Kd7 {[%emt 0:00:05]} 43. Rxe5 {[%emt 0:00:01]} Kxd6 {[%emt 0:00:02]} 44. Rxb5 {[%emt 0:00:01]} Bg7 {[%emt 0:00:01]} 45. Rb7 {[%emt 0:00:02]} Ke6 {[%emt 0:00:02]} 46. Nf4+ {[%emt 0:00:01]} Kf6 {[%emt 0:00:01]} 47. Nd5+ {[%emt 0:00:01]} Kg5 {[%emt 0:00:01]} 48. Rxf7 {[%emt 0:00:02]} Bxc3 {[%emt 0:00:01]} 49. Rc7 {[%emt 0:00:04]} Rxc7 {[%emt 0:00:02]} 50. Nxc7 {[%emt 0:00:01]} Be5 {[%emt 0:00:01]} 51. Nd5 {[%emt 0:00:02]} Kh4 {[%emt 0:00:01]} 52. Kg2 {[%emt 0:00:00]} Bd6 {[%emt 0:00:02]} 53. Ne3 {[%emt 0:00:03]} Kg5 {[%emt 0:00:01]} 54. Kf3 {[%emt 0:00:00]} Bc5 {[%emt 0:00:02]} 55. Nd5 {[%emt 0:00:04]} Bd6 {[%emt 0:00:01]} 56. Ne3 {[%emt 0:00:00]} Kh4 {[%emt 0:00:03]} 57. Kg2 {[%emt 0:00:01]} Be5 {[%emt 0:00:02]} 58. Nc4 {[%emt 0:00:01]} Bc7 {[%emt 0:00:04]} 59. Ne3 {[%emt 0:00:01]} Kg5 {[%emt 0:00:05]} 60. Kf3 {[%emt 0:00:01]} Kh4 {[%emt 0:00:02]} 61. Kg2 {[%emt 0:00:02]} 1/2-1/2

[Event "RUS-ch Men Blitz 2019"]
[Site "Sochi"]
[Date "2019.10.17"]
[Round "14.16"]
[White "Tekeyev, Zaur"]
[Black "Goltsev, Dmitry"]
[Result "0-1"]
[ECO "B41"]
[WhiteElo "2384"]
[BlackElo "2309"]
[Annotator "NA"]
[PlyCount "96"]
[EventDate "2019.10.17"]
[EventType "swiss"]
[EventCountry "RUS"]
[SourceTitle "playchess.com"]
[Source "ChessBase"]
[SourceQuality "1"]
[TimeControl "180+2"]

1. e4 {[%emt 0:00:00]} c5 {[%emt 0:00:00]} 2. Nf3 e6 3. d4 {[%emt 0:00:01]} cxd4 {[%emt 0:00:00]} 4. Nxd4 a6 5. c4 {[%emt 0:00:03]} Qc7 {[%emt 0:00:01]} 6. Nc3 {[%emt 0:00:01]} Nf6 {[%emt 0:00:02]} 7. Be2 {[%emt 0:00:01]} Nc6 {[%emt 0:00:01]} 8. O-O {[%emt 0:00:27]} Bb4 {[%emt 0:00:05]} 9. Bg5 {[%emt 0:00:19]} Bxc3 {[%emt 0:00:21]} 10. Bxf6 {[%emt 0:00:02]} gxf6 {[%emt 0:00:05]} 11. bxc3 {[%emt 0:00:03]} Ne5 {[%emt 0:00:07]} 12. Qd2 {[%emt 0:00:04]} Ke7 {[%emt 0:00:35]} 13. f4 {[%emt 0:00:54]} Nxc4 {[%emt 0:00:04]} 14. Bxc4 {[%emt 0:00:01]} Qxc4 {[%emt 0:00:01]} 15. e5 {[%emt 0:00:01]} f5 {[%emt 0:00:28]} 16. Rad1 {[%emt 0:00:05]} b5 {[%emt 0:00:17]} 17. Nf3 {[%emt 0:00:02]} Qc5+ {[%emt 0:00:05]} 18. Kh1 {[%emt 0:00:01]} Qc7 {[%emt 0:00:24]} 19. Qf2 {[%emt 0:00:06]} Bb7 {[%emt 0:00:03]} 20. Qh4+ {[%emt 0:00:01]} Ke8 {[%emt 0:00:07]} 21. Qf6 {[%emt 0:00:02]} Rf8 {[%emt 0:00:03]} 22. Ng5 {[%emt 0:00:04]} Qxc3 {[%emt 0:00:09]} 23. Rf2 {[%emt 0:00:40]} Rc8 {[%emt 0:00:14]} 24. Qh6 {[%emt 0:00:07]} Qd4 {[%emt 0:00:11]} 25. Rff1 {[%emt 0:00:12]} Qb2 {[%emt 0:00:06]} 26. Rg1 {[%emt 0:00:19]} Rc2 {[%emt 0:00:03]} 27. Qh3 {[%emt 0:00:01]} h5 {[%emt 0:00:09]} 28. Nh7 {[%emt 0:00:04]} Rh8 {[%emt 0:00:04]} 29. Nf6+ {[%emt 0:00:01]} Kd8 {[%emt 0:00:03]} 30. Rxd7+ {[%emt 0:00:02]} Kc8 {[%emt 0:00:00]} 31. Rxb7 {[%emt 0:00:10]} Kxb7 {[%emt 0:00:01]} 32. Qf3+ {[%emt 0:00:02]} Kc7 {[%emt 0:00:06]} 33. Qe3 {[%emt 0:00:02]} Kb7 {[%emt 0:00:02]} 34. Rd1 {[%emt 0:00:02]} Rhc8 {[%emt 0:00:02]} 35. Qf3+ {[%emt 0:00:02]} R2c6 {[%emt 0:00:01]} 36. h3 {[%emt 0:00:06]} Qc3 {[%emt 0:00:02]} 37. Qxh5 {[%emt 0:00:00]} Qc2 {[%emt 0:00:04]} 38. Rf1 {[%emt 0:00:03]} Qd2 {[%emt 0:00:02]} 39. Qxf7+ {[%emt 0:00:02]} R8c7 {[%emt 0:00:01]} 40. Qh5 {[%emt 0:00:01]} Rc2 {[%emt 0:00:02]} 41. Qf3+ {[%emt 0:00:01]} Ka7 {[%emt 0:00:01]} 42. Rg1 {[%emt 0:00:02]} Rg7 {[%emt 0:00:02]} 43. Nh5 {[%emt 0:00:02]} Rh7 {[%emt 0:00:03]} 44. Nf6 {[%emt 0:00:01]} Rg7 {[%emt 0:00:02]} 45. Kh2 {[%emt 0:00:01]} Rc3 {[%emt 0:00:02]} 46. Qf1 {[%emt 0:00:06]} Rg6 {[%emt 0:00:03]} 47. Kh1 {[%emt 0:00:03]} Rh6 {[%emt 0:00:02]} 48. Kh2 {[%emt 0:00:03]} Rcxh3# {[%emt 0:00:01]} 0-1

[Event "RUS-ch Men Blitz 2019"]
[Site "Sochi"]
[Date "2019.10.17"]
[Round "14.17"]
[White "Apryshko, Gleb"]
[Black "Belozerov, Andrei"]
[Result "0-1"]
[ECO "A00"]
[WhiteElo "2382"]
[BlackElo "2515"]
[Annotator "ChessBase"]
[PlyCount "64"]
[EventDate "2019.10.17"]
[EventType "swiss"]
[EventCountry "RUS"]
[SourceTitle "playchess.com"]
[Source "ChessBase"]
[SourceQuality "1"]
[TimeControl "180+2"]

1. h4 {[%emt 0:00:00]} e5 {[%emt 0:00:02]} 2. h5 {[%emt 0:00:00]} d5 {[%emt 0:00:03]} 3. e3 {[%emt 0:00:04]} Nc6 {[%emt 0:00:05]} 4. b3 {[%emt 0:00:01]} h6 {[%emt 0:00:12]} 5. Bb2 {[%emt 0:00:01]} Nf6 {[%emt 0:00:03]} 6. Be2 {[%emt 0:00:01]} Bf5 {[%emt 0:00:14]} 7. d3 {[%emt 0:00:02]} Bd6 {[%emt 0:00:12]} 8. Nd2 {[%emt 0:00:01]} O-O {[%emt 0:00:14]} 9. Ngf3 {[%emt 0:00:15]} Re8 {[%emt 0:00:03]} 10. Nh4 {[%emt 0:00:02]} Bh7 {[%emt 0:00:04]} 11. a3 {[%emt 0:00:01]} a5 {[%emt 0:00:06]} 12. Nf1 {[%emt 0:00:17]} Qd7 {[%emt 0:00:38]} 13. Nh2 {[%emt 0:00:11]} Re6 {[%emt 0:00:14]} 14. Qd2 {[%emt 0:00:27]} Rae8 {[%emt 0:00:07]} 15. c3 {[%emt 0:00:29]} d4 {[%emt 0:00:11]} 16. e4 {[%emt 0:00:19]} dxc3 17. Bxc3 Bc5 {[%emt 0:00:23]} 18. b4 {[%emt 0:00:57]} axb4 19. axb4 Bd4 {[%emt 0:00:05]} 20. b5 {[%emt 0:00:05]} Bxc3 {[%emt 0:00:02]} 21. Qxc3 {[%emt 0:00:04]} Nd4 {[%emt 0:00:01]} 22. Rb1 {[%emt 0:00:10]} Rd6 {[%emt 0:00:04]} 23. N2f3 {[%emt 0:00:11]} Nxb5 {[%emt 0:00:08]} 24. Qc5 {[%emt 0:00:03]} Nd4 {[%emt 0:00:10]} 25. Nxe5 {[%emt 0:00:01]} Qe7 {[%emt 0:00:03]} 26. Nc4 {[%emt 0:00:02]} Nxe4 {[%emt 0:00:13]} 27. dxe4 {[%emt 0:00:04]} Qxe4 {[%emt 0:00:01]} 28. Rb2 {[%emt 0:00:05]} Nxe2 {[%emt 0:00:05]} 29. Nxd6 {[%emt 0:00:01]} cxd6 {[%emt 0:00:01]} 30. Qe3 {[%emt 0:00:02]} Ng3 {[%emt 0:00:07]} 31. Rh3 {[%emt 0:00:02]} Qc6 {[%emt 0:00:02]} 32. Qxe8+ {[%emt 0:00:06]} Qxe8+ {[%emt 0:00:02]} 0-1